bitfinex/quotes_BTCUSD_20251117
["timestamp","ask_amount","ask_price","bid_price","bid_amount"]
[1763364447954,0.01958127,95705.0,95704.0,0.00630042]
[1763364448102,0.01958127,95705.0,95704.0,0.016]
[1763364448461,0.01958127,95712.0,95704.0,0.04059]
[1763364448660,0.01958127,95711.0,95704.0,0.04059]
[1763364448861,0.01958127,95710.0,95704.0,0.04059]
[1763364449164,0.01958127,95709.0,95704.0,0.04059]
[1763364449495,0.01958127,95708.0,95704.0,0.04059]
[1763364449698,0.16186879,95714.0,95707.0,0.02739]
[1763364449941,0.01961338,95713.0,95707.0,0.02739]
[1763364450180,0.01961338,95712.0,95707.0,0.05198]
[1763364450391,0.01961338,95711.0,95707.0,0.05198]
[1763364450622,0.01961338,95710.0,95708.0,0.02459]
[1763364450838,0.01961338,95709.0,95708.0,0.02459]
[1763364451443,0.01961338,95709.0,95707.0,0.01139]
[1763364451740,0.01961338,95708.0,95707.0,0.01139]
[1763364452101,0.01961338,95708.0,95707.0,0.02739]
[1763364452507,0.01961338,95708.0,95707.0,0.01139]
[1763364452936,0.45144148,95717.0,95707.0,0.01139]
[1763364453573,0.28957269,95717.0,95707.0,0.01139]
[1763364454281,0.1277039,95717.0,95707.0,0.01139]
[1763364455696,0.10510881,95717.0,95707.0,0.01139]
[1763364456088,0.01139,95716.0,95707.0,0.01139]
[1763364457719,0.33439,95716.0,95707.0,0.01139]
[1763364462041,0.01139,95716.0,95715.0,0.02739]
[1763364462155,0.16186879,95730.0,95720.0,0.00999999]
[1763364462354,0.10510881,95724.0,95720.0,0.00999999]
[1763364462581,0.10510881,95724.0,95710.0,0.00999999]
[1763364462800,0.32373758,95720.0,95710.0,0.00999999]
[1763364463745,0.32373758,95720.0,95711.0,0.005737]
[1763364464884,0.01962172,95719.0,95711.0,0.005737]
[1763364465125,0.01962172,95718.0,95711.0,0.005737]
[1763364465332,0.32373758,95720.0,95711.0,0.005737]
[1763364465333,0.01962172,95717.0,95711.0,0.005737]
[1763364465531,0.32373758,95720.0,95711.0,0.005737]
[1763364465532,0.01962172,95716.0,95711.0,0.005737]
[1763364465771,0.01962172,95715.0,95710.0,0.00999999]
[1763364465934,0.01962172,95714.0,95710.0,0.00999999]
[1763364466131,0.01962172,95713.0,95710.0,0.00999999]
[1763364466376,0.01962172,95712.0,95710.0,0.00999999]
[1763364466668,0.16186879,95720.0,95719.0,0.01574]
[1763364466807,0.01962142,95720.0,95719.0,0.01574]
[1763364467006,0.01962142,95720.0,95711.0,0.02342]
[1763364467208,0.01962142,95719.0,95711.0,0.02342]
[1763364467408,0.13652513,95724.0,95711.0,0.029602]
[1763364467409,0.10338142,95718.0,95711.0,0.029602]
[1763364467642,0.01962142,95717.0,95711.0,0.029602]
[1763364467886,0.01962142,95716.0,95712.0,0.02342]
[1763364468093,0.01962142,95715.0,95710.0,0.00999999]
[1763364468293,0.08376,95718.0,95710.0,0.00999999]
[1763364468495,0.01961791,95717.0,95710.0,0.00999999]
[1763364468697,0.01961791,95716.0,95710.0,0.00999999]
[1763364468899,0.01961791,95715.0,95710.0,0.00999999]
[1763364469117,0.08376,95718.0,95710.0,0.00999999]
[1763364469323,0.01961655,95717.0,95710.0,0.00999999]
[1763364469525,0.01961655,95716.0,95710.0,0.00999999]
[1763364469727,0.01961655,95715.0,95710.0,0.03341999]
[1763364469921,0.08376,95718.0,95710.0,0.03341999]
[1763364470142,0.01961655,95717.0,95710.0,0.03341999]
[1763364470378,0.01961655,95716.0,95710.0,0.03341999]
[1763364470521,0.01961655,95715.0,95710.0,0.03341999]
[1763364470724,0.01961655,95714.0,95710.0,0.03341999]
[1763364470925,0.08376,95718.0,95710.0,0.00999999]
[1763364471152,0.01961543,95717.0,95713.0,0.01574]
[1763364471354,0.01961543,95716.0,95710.0,0.00999999]
[1763364471668,0.01961543,95715.0,95710.0,0.00999999]
[1763364471826,0.01961543,95714.0,95710.0,0.00999999]
[1763364472050,0.08376,95718.0,95710.0,0.00999999]
[1763364472266,0.01961518,95717.0,95690.0,0.01237]
[1763364472456,0.10510881,95703.0,95696.0,0.01194]
[1763364472658,0.32373758,95712.0,95696.0,0.01194]
[1763364472659,0.323,95707.0,95696.0,0.03536]
[1763364472908,0.01961733,95706.0,95702.0,0.01578424]
[1763364473112,0.01961733,95705.0,95702.0,0.01578424]
[1763364473273,0.01961733,95704.0,95702.0,0.00728425]
[1763364473624,0.323,95707.0,95699.0,0.01134125]
[1763364473803,0.02983755,95706.0,95699.0,4.426e-05]
[1763364474108,0.01961755,95705.0,95691.0,0.01194]
[1763364474280,0.01961755,95704.0,95691.0,0.00183526]
[1763364474494,0.03307,95706.0,95691.0,0.00183526]
[1763364474656,0.01961758,95705.0,95691.0,0.00183526]
[1763364474855,0.01961758,95704.0,95691.0,0.00183526]
[1763364475061,0.03307,95706.0,95691.0,0.00183526]
[1763364475307,0.01961687,95705.0,95691.0,0.00183526]
[1763364475534,0.01961687,95704.0,95691.0,0.00183526]
[1763364475740,0.03307,95706.0,95691.0,0.00183526]
[1763364475942,0.01961687,95705.0,95691.0,0.00183526]
[1763364476318,0.01961687,95704.0,95691.0,0.00183526]
[1763364476521,0.03307,95706.0,95691.0,0.00183526]
[1763364476657,0.01961714,95705.0,95691.0,0.00183526]
[1763364476866,0.01961714,95704.0,95691.0,0.00183526]
[1763364477086,0.02285,95705.0,95691.0,0.00183526]
[1763364477287,0.01181,95703.0,95691.0,0.00183526]
[1763364479227,0.16186879,95701.0,95691.0,0.00183526]
[1763364479429,0.32373758,95701.0,95691.0,0.00183526]
[1763364479634,0.01181,95703.0,95691.0,0.00183526]
[1763364479872,0.01022,95706.0,95692.0,0.02342]
[1763364480005,0.01961654,95705.0,95692.0,0.02342]
[1763364480204,0.01022,95706.0,95692.0,0.02342]
[1763364480404,0.01961629,95705.0,95692.0,0.02342]
[1763364480604,0.01022,95706.0,95692.0,0.02342]
[1763364480840,0.08376,95704.0,95692.0,0.02342]
[1763364481230,0.08376,95703.0,95692.0,0.02342]
[1763364481483,0.08376,95703.0,95692.0,0.04253641]
[1763364481685,0.08376,95703.0,95691.0,0.00183526]
[1763364481686,0.01181,95702.0,95691.0,0.00183526]
[1763364482016,0.08376,95703.0,95691.0,0.00183526]
[1763364482217,0.08376,95703.0,95692.0,0.02342]
[1763364482444,0.08376,95702.0,95692.0,0.02342]
[1763364483088,0.323,95719.0,95707.0,0.01194]
[1763364483272,0.323,95708.0,95707.0,0.01194]
[1763364483473,0.34261467,95708.0,95707.0,0.01194]
[1763364484101,0.34261467,95708.0,95701.0,0.001791]
[1763364484344,0.01961467,95707.0,95701.0,0.001791]
[1763364484561,0.08376,95713.0,95701.0,0.001791]
[1763364484821,0.01955,95708.0,95701.0,0.001791]
[1763364485179,0.01955,95708.0,95701.0,0.00026865]
[1763364485363,0.01955,95708.0,95698.0,0.00320115]
[1763364485568,0.01955,95708.0,95691.0,0.00183526]
[1763364485766,0.01955,95708.0,95692.0,0.0167744]
[1763364485968,0.08376,95707.0,95692.0,0.0167744]
[1763364486168,0.08376,95707.0,95691.0,0.00176381]
[1763364487677,0.08376,95707.0,95691.0,0.10176381]
[1763364487895,0.08376,95707.0,95691.0,0.10276381]
[1763364488522,0.02285,95706.0,95691.0,0.10276381]
[1763364488726,0.02285,95706.0,95691.0,0.00276381]
[1763364489135,0.32373758,95701.0,95691.0,0.00276381]
[1763364489334,0.32373758,95701.0,95691.0,0.00104426]
[1763364489583,0.01181,95700.0,95691.0,0.00104426]
[1763364489743,0.01181,95692.0,95691.0,0.00104426]
[1763364489954,0.01181,95692.0,95691.0,4.426e-05]
[1763364490313,0.01181,95692.0,95691.0,0.00104426]
[1763364490575,0.01181,95692.0,95691.0,4.426e-05]
[1763364491005,0.01181,95692.0,95691.0,0.00104426]
[1763364491180,0.01181,95692.0,95691.0,4.426e-05]
[1763364491559,0.01181,95692.0,95691.0,0.00104426]
[1763364491878,0.01181,95692.0,95691.0,0.00204426]
[1763364493069,0.09557,95692.0,95691.0,0.00204426]
[1763364499067,0.1118,95692.0,95691.0,0.00204426]
[1763364499297,0.13641,95692.0,95691.0,0.00204426]
[1763364499445,0.45941,95692.0,95691.0,0.00204426]
[1763364499686,0.50244891,95692.0,95691.0,0.00204426]
[1763364500389,0.50244891,95692.0,95691.0,4.426e-05]
[1763364500630,0.52504642,95692.0,95691.0,4.426e-05]
[1763364500829,0.57755106,95692.0,95691.0,4.426e-05]
[1763364501146,0.60577684,95692.0,95691.0,4.426e-05]
[1763364501354,0.56543558,95692.0,95691.0,4.426e-05]
[1763364501551,0.5372098,95692.0,95691.0,4.426e-05]
[1763364503310,0.5382098,95692.0,95691.0,4.426e-05]
[1763364503738,0.5392098,95692.0,95691.0,4.426e-05]
[1763364503936,0.38968015,95692.0,95691.0,4.426e-05]
[1763364504168,0.3089884,95692.0,95691.0,4.426e-05]
[1763364505687,0.3927484,95692.0,95691.0,4.426e-05]
[1763364505912,0.4159084,95692.0,95691.0,4.426e-05]
[1763364507284,0.19078642,95692.0,95691.0,4.426e-05]
[1763364507470,0.16818891,95692.0,95691.0,4.426e-05]
[1763364507665,0.01181,95700.0,95691.0,4.426e-05]
[1763364507870,0.12813881,95692.0,95691.0,4.426e-05]
[1763364508283,0.72851172,95701.0,95691.0,4.426e-05]
[1763364508481,0.10510881,95692.0,95691.0,4.426e-05]
[1763364508710,0.12913881,95692.0,95691.0,4.426e-05]
[1763364509162,0.13013881,95692.0,95691.0,4.426e-05]
[1763364509519,0.45313881,95692.0,95691.0,4.426e-05]
[1763364510138,0.45213881,95692.0,95691.0,4.426e-05]
[1763364511230,0.45313881,95692.0,95691.0,4.426e-05]
[1763364512247,0.45213881,95692.0,95691.0,4.426e-05]
[1763364512679,0.12913881,95692.0,95691.0,4.426e-05]
[1763364512831,0.12913881,95692.0,95691.0,0.01550426]
[1763364513119,0.02303,95692.0,95691.0,0.01550426]
[1763364513235,0.323,95700.0,95691.0,0.03853426]
[1763364513443,0.323,95692.0,95691.0,0.03853426]
[1763364514291,0.323,95692.0,95691.0,0.01550426]
[1763364514671,0.323,95692.0,95691.0,0.03853426]
[1763364514899,0.323,95692.0,95691.0,0.01550426]
[1763364515089,0.323,95692.0,95691.0,4.426e-05]
[1763364515732,0.40676,95692.0,95691.0,4.426e-05]
[1763364516116,0.323,95692.0,95691.0,4.426e-05]
[1763364516293,0.40676,95692.0,95691.0,4.426e-05]
[1763364519725,0.42631271,95692.0,95691.0,4.426e-05]
[1763364520708,0.08376,95692.0,95691.0,0.01550426]
[1763364520904,0.08376,95692.0,95691.0,0.03853426]
[1763364521091,0.10331481,95692.0,95691.0,0.03853426]
[1763364521491,0.10331481,95692.0,95691.0,0.01550426]
[1763364523454,0.42631481,95692.0,95691.0,0.03853426]
[1763364524525,0.42631481,95692.0,95691.0,0.01550426]
[1763364524935,0.42631481,95692.0,95691.0,4.426e-05]
[1763364526969,0.42631481,95692.0,95691.0,0.01544426]
[1763364527935,0.42631481,95692.0,95691.0,4.426e-05]
[1763364529321,0.08376,95692.0,95691.0,4.426e-05]
[1763364532677,0.11518675,95692.0,95691.0,4.426e-05]
[1763364534851,0.11518675,95692.0,95691.0,0.05067426]
[1763364534852,0.03142675,95692.0,95691.0,0.05067426]
[1763364535075,0.08376,95692.0,95691.0,0.05697669]
[1763364535507,0.08476,95692.0,95691.0,0.05697669]
[1763364535881,0.08376,95692.0,95691.0,0.05697669]
[1763364536081,0.08376,95692.0,95691.0,0.05067426]
[1763364536285,0.08376,95692.0,95691.0,0.05167426]
[1763364536894,0.08376,95692.0,95691.0,0.05267426]
[1763364537091,0.08376,95692.0,95691.0,0.05167426]
[1763364537330,0.08376,95692.0,95691.0,0.05067426]
[1763364537544,0.08376,95692.0,95691.0,0.05797669]
[1763364537704,0.08376,95692.0,95691.0,0.03509669]
[1763364538303,0.08376,95692.0,95691.0,0.05797669]
[1763364539122,0.08376,95692.0,95691.0,0.05167426]
[1763364542841,0.08376,95692.0,95691.0,0.02879426]
[1763364543549,0.08376,95692.0,95691.0,0.05167426]
[1763364545641,0.08376,95692.0,95691.0,0.00020467]
[1763364545849,0.08376,95692.0,95669.0,0.1]
[1763364545850,0.323,95670.0,95669.0,0.1]
[1763364546047,0.34261387,95670.0,95652.0,0.00258613]
[1763364546222,0.04221982,95669.0,95652.0,0.00258613]
[1763364546450,0.01961387,95668.0,95653.0,0.01235]
[1763364546581,0.10337387,95667.0,95653.0,0.01235]
[1763364546770,0.10510881,95655.0,95654.0,0.02288]
[1763364547180,0.10510881,95655.0,95654.0,0.03828]
[1763364548232,0.10510881,95655.0,95653.0,0.01235]
[1763364548446,0.323,95654.0,95653.0,0.01235]
[1763364548847,0.323,95654.0,95652.0,0.00258613]
[1763364552092,0.323,95654.0,95653.0,0.02775]
[1763364552304,0.08376,95667.0,95653.0,0.05063]
[1763364552506,0.42810881,95655.0,95654.0,0.02215661]
[1763364552845,0.42810881,95655.0,95654.0,0.03828]
[1763364558313,0.323,95663.0,95654.0,0.03828]
[1763364558454,0.0314369,95675.0,95653.0,0.01235]
[1763364558455,0.0838,95662.0,95655.0,0.02386]
[1763364558856,0.0838,95662.0,95661.0,0.01522]
[1763364559255,0.0838,95662.0,95661.0,0.03908]
[1763364562991,0.0838,95662.0,95661.0,0.01522]
[1763364564032,0.0838,95662.0,95652.0,0.00258613]
[1763364564033,0.09218,95662.0,95652.0,0.00258613]
[1763364564242,0.04341874,95656.0,95630.0,0.0004]
[1763364564532,0.323,95639.0,95630.0,0.0004]
[1763364565497,0.01953322,95638.0,95630.0,0.0004]
[1763364565704,0.10510881,95631.0,95630.0,0.0004]
[1763364567312,0.42810881,95631.0,95630.0,0.0004]
[1763364568291,0.44763293,95631.0,95630.0,0.0004]
[1763364569808,0.44763293,95631.0,95630.0,0.01562]
[1763364570846,0.44763293,95631.0,95630.0,0.0004]
[1763364571142,0.44763293,95631.0,95630.0,0.00100162]
[1763364571713,0.44763293,95631.0,95630.0,0.01622162]
[1763364571920,0.44763293,95631.0,95630.0,0.00100162]
[1763364575404,0.01952412,95631.0,95630.0,0.00100162]
[1763364575607,0.01955561,95631.0,95630.0,0.00100162]
[1763364578117,0.01955561,95631.0,95630.0,0.01622162]
[1763364578531,0.42639561,95631.0,95630.0,0.01622162]
[1763364579067,0.42639561,95631.0,95630.0,0.04008162]
[1763364582252,0.10339561,95631.0,95630.0,0.04008162]
[1763364582856,0.08384,95631.0,95630.0,0.04008162]
[1763364583177,0.10510881,95639.0,95637.0,0.01212]
[1763364583501,0.10510881,95639.0,95638.0,0.01522]
[1763364583708,0.18894881,95639.0,95638.0,0.01522]
[1763364584065,0.18894881,95639.0,95637.0,0.01212]
[1763364584408,0.08384,95638.0,95630.0,0.0004]
[1763364584977,0.40684,95638.0,95630.0,0.0004]
[1763364585611,0.323,95637.0,95630.0,0.0004]
[1763364585812,0.08384,95637.0,95630.0,0.0004]
[1763364591558,0.08384,95636.0,95630.0,0.0004]
[1763364591754,0.08384,95636.0,95635.0,0.00046501]
[1763364594972,0.10348266,95636.0,95635.0,0.00046501]
[1763364598535,0.13169661,95636.0,95635.0,0.00046501]
[1763364599238,0.10348266,95636.0,95635.0,0.00046501]
[1763364599455,0.12611265,95636.0,95635.0,0.00046501]
[1763364599807,0.10348266,95636.0,95635.0,0.00046501]
[1763364600327,0.42648266,95636.0,95635.0,0.00046501]
[1763364600535,0.49253139,95636.0,95635.0,0.00046501]
[1763364601074,0.49672476,95636.0,95635.0,0.00046501]
[1763364601656,0.49772476,95636.0,95635.0,0.00046501]
[1763364602112,0.47524321,95636.0,95635.0,0.00046501]
[1763364602329,0.36641874,95635.0,95630.0,0.0004]
[1763364602512,0.42296813,95633.0,95630.0,0.0004]
[1763364602673,0.04341874,95631.0,95630.0,0.0004]
[1763364602876,0.40869139,95631.0,95630.0,0.0004]
[1763364603084,0.08569139,95631.0,95630.0,0.0004]
[1763364603708,0.08569139,95631.0,95600.0,0.0004]
[1763364603709,0.04341874,95629.0,95600.0,0.0004]
[1763364603888,0.42810881,95612.0,95600.0,0.0004]
[1763364604095,0.50807074,95612.0,95600.0,0.0004]
[1763364604294,0.47038146,95612.0,95600.0,0.0004]
[1763364604977,0.47182406,95612.0,95600.0,0.0004]
[1763364605608,0.55566406,95612.0,95600.0,0.0004]
[1763364606249,0.55466406,95612.0,95600.0,0.0004]
[1763364606462,0.55466406,95612.0,95603.0,0.02479]
[1763364606887,0.55466406,95612.0,95600.0,0.0004]
[1763364609557,0.53203407,95612.0,95600.0,0.0004]
[1763364609760,0.44819407,95612.0,95600.0,0.0004]
[1763364610022,0.53203407,95612.0,95611.0,0.00265596]
[1763364610600,0.10392526,95612.0,95611.0,0.05516596]
[1763364610910,0.10392526,95612.0,95611.0,0.06072256]
[1763364611142,0.10392526,95612.0,95611.0,0.05516596]
[1763364611326,0.10392526,95612.0,95611.0,0.03037596]
[1763364611768,0.10392526,95612.0,95611.0,0.00265596]
[1763364614445,0.42692526,95612.0,95611.0,0.00265596]
[1763364618629,0.42692526,95612.0,95611.0,0.02990596]
[1763364620414,0.08384,95612.0,95611.0,0.05459596]
[1763364620610,0.18894881,95612.0,95611.0,0.06009556]
[1763364621363,0.18894881,95612.0,95611.0,0.02990596]
[1763364621485,0.18894881,95612.0,95611.0,0.00265596]
[1763364622578,0.65928864,95621.0,95611.0,0.00265596]
[1763364622740,0.10510881,95620.0,95611.0,0.00204427]
[1763364625468,0.08384,95619.0,95611.0,0.00204427]
[1763364625903,0.10510881,95619.0,95618.0,0.01155]
[1763364626050,0.18894881,95619.0,95618.0,0.01155]
[1763364628136,0.18894881,95619.0,95618.0,0.02725]
[1763364628337,0.18894881,95619.0,95618.0,0.05194]
[1763364628533,0.18894881,95619.0,95618.0,0.05240465]
[1763364629344,0.18894881,95619.0,95618.0,0.02771465]
[1763364629553,0.18894881,95619.0,95618.0,0.01201465]
[1763364630972,0.13335653,95639.0,95618.0,0.05240465]
[1763364631188,0.08384,95619.0,95618.0,0.01155]
[1763364631628,0.08384,95619.0,95618.0,0.05194]
[1763364631961,0.08384,95619.0,95618.0,0.05294]
[1763364632355,0.08384,95619.0,95618.0,0.05394]
[1763364632491,0.08384,95619.0,95618.0,0.05294]
[1763364632693,0.08384,95619.0,95618.0,0.05394]
[1763364635471,0.08384,95619.0,95618.0,0.06069343]
[1763364639136,0.08384,95619.0,95618.0,0.05394]
[1763364639555,0.08384,95619.0,95618.0,0.05440465]
[1763364665932,0.08384,95619.0,95618.0,0.05258465]
[1763364666592,0.08384,95619.0,95618.0,0.05158465]
[1763364666793,0.08384,95619.0,95618.0,0.05058465]
[1763364667966,0.08384,95619.0,95618.0,0.02771465]
[1763364668487,0.08384,95619.0,95618.0,0.05058465]
[1763364669482,0.08384,95619.0,95618.0,0.05700254]
[1763364670066,0.08384,95619.0,95618.0,0.05058465]
[1763364672014,0.08384,95619.0,95618.0,0.00046465]
[1763364672211,0.10348279,95619.0,95618.0,0.00046465]
[1763364672409,0.10348279,95619.0,95618.0,0.01705465]
[1763364675179,0.08384,95619.0,95618.0,0.01705465]
[1763364675323,0.08384,95619.0,95618.0,0.04526954]
[1763364675765,0.08384,95619.0,95618.0,0.03992465]
[1763364677594,0.08384,95619.0,95618.0,0.04092465]
[1763364677924,0.08384,95619.0,95618.0,0.04192465]
[1763364680232,0.08384,95619.0,95618.0,0.01905465]
[1763364680664,0.08384,95619.0,95618.0,0.04285465]
[1763364680884,0.08384,95619.0,95618.0,0.04849254]
[1763364683259,0.08384,95619.0,95618.0,0.04285465]
[1763364687099,0.28075121,95650.0,95618.0,0.04285465]
[1763364687312,0.08384,95619.0,95618.0,0.01859]
[1763364687758,0.08384,95619.0,95618.0,0.07383388]
[1763364687964,0.08384,95619.0,95618.0,0.07283388]
[1763364688168,0.08384,95619.0,95618.0,0.04903388]
[1763364688392,0.08384,95619.0,95618.0,0.01759]
[1763364688600,0.08384,95619.0,95618.0,0.01659]
[1763364688805,0.08384,95619.0,95618.0,0.04039]
[1763364689886,0.08384,95619.0,95618.0,0.04139]
[1763364690098,0.08384,95619.0,95618.0,0.04239]
[1763364690297,0.08384,95619.0,95618.0,0.04139]
[1763364690528,0.08384,95619.0,95618.0,0.04039]
[1763364690747,0.08384,95619.0,95618.0,0.04139]
[1763364691742,0.08384,95619.0,95618.0,0.04239]
[1763364692738,0.08384,95619.0,95618.0,0.002]
[1763364693114,0.08384,95619.0,95618.0,0.00246465]
[1763364693707,0.10347386,95619.0,95618.0,0.00246465]
[1763364693913,0.10347386,95619.0,95618.0,0.00146465]
[1763364694767,0.10347386,95619.0,95618.0,0.00046465]
[1763364695121,0.10347386,95619.0,95618.0,0.00146465]
[1763364695848,0.10766759,95619.0,95618.0,0.00046465]
[1763364698610,0.10346275,95619.0,95618.0,0.00046465]
[1763364705173,0.10345357,95619.0,95618.0,0.00046465]
[1763364705526,0.10345357,95619.0,95618.0,0.04057465]
[1763364705718,0.01961357,95619.0,95618.0,0.04057465]
[1763364705915,0.10345357,95619.0,95618.0,0.04057465]
[1763364706322,0.08384,95619.0,95618.0,0.04057465]
[1763364712262,0.10345781,95619.0,95618.0,0.04057465]
[1763364713921,0.10345781,95619.0,95618.0,0.01646465]
[1763364715133,0.10345781,95619.0,95618.0,0.00046465]
[1763364715764,0.08384,95619.0,95618.0,0.04057465]
[1763364715991,0.08384,95619.0,95618.0,0.04601754]
[1763364716412,0.08384,95619.0,95618.0,0.04057465]
[1763364719856,0.08384,95619.0,95618.0,0.00046465]
[1763364720723,0.08384,95619.0,95618.0,0.01646465]
[1763364720935,0.08384,95619.0,95618.0,0.04057465]
[1763364721636,0.08384,95619.0,95618.0,0.01646465]
[1763364722254,0.08384,95619.0,95618.0,0.04057465]
[1763364723499,0.08384,95619.0,95618.0,0.04601754]
[1763364724077,0.08384,95619.0,95618.0,0.04057465]
[1763364724631,0.08384,95619.0,95618.0,0.04157465]
[1763364727286,0.08384,95619.0,95618.0,0.00146465]
[1763364727704,0.10347693,95619.0,95618.0,0.00146465]
[1763364728489,0.10347693,95619.0,95618.0,0.00046465]
[1763364728630,0.08384,95619.0,95618.0,0.00046465]
[1763364739898,0.08803383,95619.0,95618.0,0.00046465]
[1763364740161,0.08384,95619.0,95618.0,0.00046465]
[1763364744334,0.04341874,95625.0,95618.0,0.00046465]
[1763364744476,0.00419383,95620.0,95611.0,0.00204427]
[1763364744678,0.10510881,95612.0,95611.0,0.00204427]
[1763364744880,0.12472992,95612.0,95611.0,0.00204427]
[1763364745565,0.20856992,95612.0,95611.0,0.00204427]
[1763364746084,0.21276413,95612.0,95611.0,0.00204427]
[1763364746379,0.53576413,95612.0,95611.0,0.00204427]
[1763364751714,0.08384,95612.0,95611.0,0.00204427]
[1763364751916,0.08384,95612.0,95611.0,0.00270023]
[1763364758707,0.12725874,95612.0,95611.0,0.00270023]
[1763364759064,0.05961531,95612.0,95611.0,0.00270023]
[1763364759273,0.14852755,95612.0,95611.0,0.00270023]
[1763364759397,0.17112446,95612.0,95611.0,0.00270023]
[1763364759901,0.49412446,95612.0,95611.0,0.00270023]
[1763364760519,0.49512446,95612.0,95611.0,0.00270023]
[1763364760725,0.54867444,95612.0,95611.0,0.00270023]
[1763364760924,0.54967444,95612.0,95611.0,0.00270023]
[1763364761524,0.49612446,95612.0,95611.0,0.00270023]
[1763364764006,0.49512446,95612.0,95611.0,0.00270023]
[1763364764353,0.57634833,95612.0,95611.0,0.00270023]
[1763364764758,0.57534833,95612.0,95611.0,0.00270023]
[1763364765562,0.75945076,95612.0,95611.0,0.00270023]
[1763364765770,0.75945076,95612.0,95590.0,0.0004]
[1763364765771,0.01999998,95610.0,95590.0,0.0004]
[1763364765971,0.09990476,95601.0,95600.0,0.00053276]
[1763364766172,0.38603197,95601.0,95600.0,0.00053276]
[1763364766373,0.40862888,95601.0,95600.0,0.00053276]
[1763364766586,0.41282446,95601.0,95600.0,0.00053276]
[1763364767196,0.41382446,95601.0,95600.0,0.00053276]
[1763364767400,0.41482446,95601.0,95600.0,0.00053276]
[1763364768720,0.45244632,95601.0,95600.0,0.00053276]
[1763364769120,0.41482446,95601.0,95600.0,0.00053276]
[1763364769357,0.46571769,95601.0,95600.0,0.00053276]
[1763364769935,0.41482446,95601.0,95600.0,0.00053276]
[1763364771576,0.44303185,95601.0,95600.0,0.00053276]
[1763364771938,0.44303185,95601.0,95600.0,0.00083361]
[1763364772158,0.04840572,95601.0,95600.0,0.00083361]
[1763364772346,0.01961323,95601.0,95600.0,0.00083361]
[1763364772542,0.02161323,95601.0,95600.0,0.00083361]
[1763364773223,0.02061323,95601.0,95600.0,0.00083361]
[1763364773779,0.02161323,95601.0,95600.0,0.00083361]
[1763364774621,0.02161323,95601.0,95600.0,0.01660361]
[1763364775055,0.02161323,95601.0,95600.0,0.00083361]
[1763364775467,0.42849323,95601.0,95600.0,0.01660361]
[1763364775694,0.45009014,95601.0,95600.0,0.00083361]
[1763364776046,0.44909014,95601.0,95600.0,0.01660361]
[1763364776242,0.44909014,95601.0,95600.0,0.00083361]
[1763364777422,0.44909014,95601.0,95600.0,0.01660361]
[1763364777623,0.42649323,95601.0,95600.0,0.03973361]
[1763364778334,0.08388,95601.0,95600.0,0.01660361]
[1763364780884,0.08388,95601.0,95600.0,0.03973361]
[1763364781927,0.08388,95601.0,95600.0,0.05161361]
[1763364782135,0.08388,95601.0,95600.0,0.02848361]
[1763364783427,0.08388,95601.0,95600.0,0.01271361]
[1763364784035,0.08388,95601.0,95600.0,0.03444397]
[1763364784367,0.08388,95601.0,95600.0,0.05757397]
[1763364784989,0.08388,95601.0,95600.0,0.05161361]
[1763364785123,0.10510881,95612.0,95602.0,0.24330546]
[1763364785329,0.10510881,95612.0,95611.0,0.02765]
[1763364785572,0.51198881,95612.0,95611.0,0.02765]
[1763364785777,0.18898881,95612.0,95611.0,0.05078]
[1763364786376,0.18898881,95612.0,95611.0,0.02765]
[1763364787183,0.18898881,95612.0,95601.0,0.02313]
[1763364787395,0.48661092,95611.0,95600.0,0.01241276]
[1763364787595,0.24330546,95610.0,95600.0,0.03554276]
[1763364788128,0.24330546,95610.0,95601.0,0.02313]
[1763364788533,0.18898881,95612.0,95609.0,0.02765]
[1763364790018,0.18898881,95612.0,95609.0,0.01188]
[1763364790217,0.18898881,95612.0,95600.0,0.01241276]
[1763364790533,0.18898881,95612.0,95602.0,0.00024618]
[1763364790750,0.51198881,95612.0,95611.0,0.02765]
[1763364791153,0.51198881,95612.0,95611.0,0.05078]
[1763364792498,0.18898881,95612.0,95611.0,0.05078]
[1763364794690,0.08388,95612.0,95611.0,0.05078]
[1763364794892,0.08384,95612.0,95611.0,0.05078]
[1763364796932,0.08384,95612.0,95611.0,0.05178]
[1763364817556,0.08384,95612.0,95611.0,0.01288]
[1763364817756,0.08384,95612.0,95611.0,0.02893]
[1763364817976,0.08384,95612.0,95611.0,0.04927304]
[1763364818210,0.08384,95612.0,95611.0,0.07214304]
[1763364819029,0.08384,95612.0,95611.0,0.39514304]
[1763364819269,0.01053905,95651.0,95611.0,0.39514304]
[1763364819479,0.01053905,95651.0,95648.0,0.02842]
[1763364819698,0.12473114,95649.0,95648.0,0.02842]
[1763364820311,0.12473415,95649.0,95648.0,0.05129]
[1763364820734,0.12473415,95649.0,95648.0,0.05133431]
[1763364821166,0.12473415,95649.0,95648.0,0.05770474]
[1763364821167,0.01962534,95649.0,95648.0,0.05770474]
[1763364821567,0.01962534,95649.0,95648.0,0.01241431]
[1763364821865,0.01962534,95649.0,95648.0,0.02846431]
[1763364822310,0.01962534,95649.0,95648.0,0.05133431]
[1763364822513,0.01962534,95649.0,95648.0,0.05233431]
[1763364822783,0.01962534,95649.0,95648.0,0.02946431]
[1763364822961,0.01962534,95649.0,95648.0,0.05233431]
[1763364823164,0.01962534,95649.0,95648.0,4.431e-05]
[1763364824383,0.01962534,95649.0,95648.0,0.00104431]
[1763364824587,0.01962534,95649.0,95648.0,4.431e-05]
[1763364825482,0.10346534,95649.0,95648.0,4.431e-05]
[1763364830982,0.42646534,95649.0,95648.0,4.431e-05]
[1763364831158,0.44903268,95649.0,95648.0,4.431e-05]
[1763364832299,0.4706576,95649.0,95648.0,4.431e-05]
[1763364832872,0.51407634,95649.0,95648.0,4.431e-05]
[1763364833737,0.49245142,95649.0,95648.0,4.431e-05]
[1763364834367,0.49345142,95649.0,95648.0,4.431e-05]
[1763364834744,0.49245142,95649.0,95648.0,4.431e-05]
[1763364834954,0.49345142,95649.0,95648.0,4.431e-05]
[1763364835554,0.49445142,95649.0,95648.0,4.431e-05]
[1763364840099,0.52266352,95649.0,95648.0,4.431e-05]
[1763364840518,0.15182608,95649.0,95648.0,4.431e-05]
[1763364843500,0.47482608,95649.0,95648.0,4.431e-05]
[1763364845038,0.08384,95649.0,95648.0,4.431e-05]
[1763364848076,0.0229,95650.0,95648.0,4.431e-05]
[1763364848281,0.18894881,95649.0,95648.0,4.431e-05]
[1763364848689,0.18894881,95649.0,95648.0,0.03893431]
[1763364848861,0.18894881,95649.0,95648.0,0.01603431]
[1763364849996,0.18894881,95649.0,95648.0,4.431e-05]
[1763364850204,0.18994881,95649.0,95648.0,4.431e-05]
[1763364850402,0.18894881,95649.0,95648.0,4.431e-05]